lending/lending_fUSD_20240610
["ID","MTS","AMOUNT","RATE_DAILY","PERIOD"]
[328937209,1718011847661,-150.0,0.00029448,2]
[328937210,1718011847671,-150.0,0.00029465,2]
[328937211,1718011847681,-1142.01602642,0.00029468,15]
[328937212,1718011847691,-300.0,0.0002947,2]
[328937213,1718011847702,-643.86951467,0.00029474,2]
[328937214,1718011847712,-500.0,0.0002948,4]
[328937215,1718011847722,-500.0,0.00029481,4]
[328937216,1718011847732,-500.0,0.00029481,4]
[328937217,1718011847743,-106.51094492,0.00029481,2]
[328937222,1718012260384,-2962.04152435,0.00013997,2]
[328937223,1718012260412,-1795.95497237,0.00013998,2]
[328937224,1718012260441,-150.0,0.00013999,2]
[328937225,1718012260468,-345998.00350328,0.00014,2]
[328937228,1718012492149,-151.89,0.0001399,2]
[328937229,1718012492176,-151.89,0.0001399,2]
[328937230,1718012492203,-151.89,0.0001399,2]
[328937231,1718012492230,-151.89,0.0001399,2]
[328937232,1718012492255,-150.0,0.00013999,2]
[328937233,1718012492280,-1499.04375403,0.00013999,2]
[328937234,1718012492308,-2902984.39624597,0.00014,2]
[328937235,1718012545989,-5621.8732,0.00013899,2]
[328937236,1718012546014,-625.28915843,0.00013998,2]
[328937237,1718012546043,-181.46353453,0.00013998,2]
[328937238,1718012546070,-234.92335311,0.00013998,2]
[328937239,1718012546096,-1000.0,0.00013999,2]
[328937240,1718012546119,-150.0,0.00013999,2]
[328937241,1718012546143,-150.0,0.00013999,2]
[328937242,1718012546169,-50827.23342471,0.00014,2]
[328937243,1718012754202,-1337.76263392,0.00013996,2]
[328937244,1718012754224,-436.61426308,0.00013996,2]
[328937245,1718012754246,-209.52678916,0.00013997,2]
[328937246,1718012754268,-2368.99633201,0.00013998,2]
[328937247,1718012754291,-400.0,0.00013998,2]
[328937248,1718012754314,-941.12648746,0.00013998,2]
[328937249,1718012754337,-1309.29893751,0.00013998,2]
[328937250,1718012754360,-635.25783234,0.00013998,2]
[328937251,1718012754383,-999.99174,0.00013998,2]
[328937252,1718012754405,-1013.44030979,0.00013998,2]
[328937253,1718012754429,-2410.80744151,0.00013998,2]
[328937254,1718012754453,-158.15742094,0.00013998,2]
[328937255,1718012754477,-1149.30744744,0.00013998,2]
[328937256,1718012754500,-295.83967052,0.00013998,2]
[328937257,1718012754522,-155.0,0.00013998,2]
[328937258,1718012754545,-302.99853243,0.00013998,2]
[328937259,1718012754569,-150.0,0.00013999,2]
[328937260,1718012754592,-1527.91472772,0.00013999,2]
[328937261,1718012754620,-20524.33835704,0.00014,2]
[328937262,1718012826151,-5296.23451849,0.00014,2]
[328937263,1718012827155,-17243.33309465,0.00014,2]
[328937264,1718012830151,-156.5267985,0.00014,2]
[328937265,1718012932439,297.91032594,0.00012598,2]
[328937266,1718012932957,155.21189114,0.00010499,2]
[328937286,1718013032427,-304.33290247,0.00013892,2]
[328937287,1718013032437,-209.52678916,0.00013893,2]
[328937288,1718013032448,-719.4340817,0.00013893,2]
[328937289,1718013032458,-156.70708804,0.00013894,2]
[328937290,1718013032469,-2231.44085212,0.00013894,2]
[328937291,1718013032480,-328.91730917,0.00013998,2]
[328937292,1718013032490,-446.8178927,0.00013998,2]
[328937293,1718013032501,-1000.0,0.00013998,2]
[328937294,1718013032511,-494.05371952,0.00013998,2]
[328937295,1718013032522,-150.0,0.00013999,2]
[328937296,1718013032533,-1218.89370837,0.00013999,2]
[328937297,1718013032557,-1880.56841885,0.00013999,2]
[328937298,1718013032571,-6400.19729466,0.00014,2]
[328937299,1718013032586,-3240.95209038,0.00014,2]
[328937300,1718013032598,-8564.2975044,0.00014,2]
[328937301,1718013032891,-469.02406266,0.00014,2]
[328937307,1718013033054,-5854.9058077,0.00014,2]
[328937309,1718013033066,-6939.02356197,0.00014,2]
[328937311,1718013033076,-2334.14742971,0.00014,2]
[328937313,1718013033088,-8383.46359081,0.00014,2]
[328937315,1718013033099,-1064.34,0.00014,2]
[328937317,1718013033111,-1750.0,0.00014,2]
[328937345,1718013038243,-9243.94694313,0.00014,2]
[328937346,1718013038255,-325.57902438,0.000149,2]
[328937347,1718013038265,-2160.80301862,0.000149,2]
[328937348,1718013038275,-165.17737501,0.0001499,2]
[328937349,1718013038285,-338.34404605,0.00014998,2]
[328937350,1718013038295,-255.97,0.00014998,2]
[328937351,1718013038306,-436.3905071,0.00014999,2]
[328937352,1718013038316,-499.99,0.00014999,2]
[328937353,1718013038326,-53173.12913282,0.00015,2]
[328937354,1718013038338,-276.846,0.00015,2]
[328937355,1718013038351,-17929.45487603,0.00015,2]
[328937356,1718013038363,-1709.49835565,0.00015,2]
[328937357,1718013038375,-5180.7408274,0.00015,2]
[328937358,1718013038433,-74586.87324787,0.00015,2]
[328937359,1718013042556,-308339.41041019,0.00015,2]
[328937360,1718013042685,-0.40151373,0.00015,2]
[328937361,1718013042697,-1034.268095,0.00015,2]
[328937362,1718013042709,-171857.53261154,0.00015,2]
[328937363,1718013042720,-1050.23900762,0.00015,2]
[328937364,1718013042730,-5075.11,0.00015,2]
[328937365,1718013042740,-196.0,0.00015399,2]
[328937366,1718013042751,-3195.91,0.0001642,2]
[328937367,1718013042760,-23900.0,0.00016579,2]
[328937368,1718013042770,-500.0,0.00016703,2]
[328937369,1718013042782,-8172.88,0.00017015,2]
[328937370,1718013042792,-2160.80301861,0.00017043,2]
[328937371,1718013042804,-800.0,0.00017128,2]
[328937372,1718013042813,-813.64,0.00017128,2]
[328937373,1718013042823,-5851.94,0.00017166,2]
[328937374,1718013042833,-150.0,0.00017233,2]
[328937375,1718013042843,-525.40490644,0.00017253,2]
[328937376,1718013042853,-299.99,0.00017253,4]
[328937377,1718013042862,-649.72311182,0.00018,2]
[328937378,1718013042872,-519.07,0.0001872,2]
[328937379,1718013042882,-2751.0,0.00018858,2]
[328937380,1718013042893,-7592.43,0.00018919,2]
[328937381,1718013042904,-411.86575816,0.00019,2]
[328937382,1718013042914,-155.80292838,0.00019178,2]
[328937383,1718013042924,-500.0,0.00019178,2]
[328937384,1718013042934,-531.07258114,0.00019178,2]
[328937385,1718013042944,-155.06417439,0.00019178,2]
[328937387,1718013042953,-500.0,0.00019178,2]
[328937389,1718013042962,-500.0,0.00019178,2]
[328937391,1718013042973,-227.4505627,0.00019178,2]
[328937395,1718013042983,-500.0,0.00019178,2]
[328937399,1718013042992,-500.0,0.00019178,2]
[328937403,1718013043002,-500.0,0.00019178,2]
[328937407,1718013043012,-500.0,0.00019178,2]
[328937411,1718013043022,-500.0,0.00019178,2]
[328937414,1718013043031,-491.6432248,0.00019178,2]
[328937417,1718013043041,-287.95588496,0.00019178,2]
[328937420,1718013043051,-500.0,0.00019178,2]
[328937423,1718013043060,-500.0,0.00019178,2]
[328937425,1718013043071,-500.0,0.00019178,2]
[328937428,1718013043080,-2160.80301861,0.00019186,2]
[328937430,1718013043089,-250.0,0.0001923,2]
[328937432,1718013043098,-800.0,0.00019269,2]
[328937434,1718013043107,-1096.99,0.00019431,2]
[328937436,1718013043116,-1096.99,0.00019436,2]
[328937438,1718013043126,-1096.99,0.00019441,2]
[328937440,1718013043136,-1096.99,0.00019447,2]
[328937442,1718013043146,-1096.99,0.00019452,2]
[328937444,1718013043156,-1096.99,0.00019457,2]
[328937446,1718013043165,-1096.99,0.00019462,2]
[328937447,1718013043177,-1096.99,0.00019467,2]
[328937450,1718013043187,-1096.99,0.00019472,2]
[328937452,1718013043197,-1096.99,0.00019477,2]
[328937454,1718013043208,-1096.99,0.00019482,2]
[328937457,1718013043219,-1096.99,0.00019488,2]
[328937459,1718013043229,-1096.99,0.00019493,2]
[328937461,1718013043240,-1096.99,0.00019498,2]
[328937463,1718013043250,-1096.99,0.00019503,2]
[328937465,1718013043262,-1096.99,0.00019508,2]
[328937467,1718013043272,-1096.99,0.00019513,2]
[328937469,1718013043282,-1096.99,0.00019518,2]
[328937471,1718013043292,-1096.99,0.00019523,2]
[328937473,1718013043302,-167.0,0.00019526,2]
[328937475,1718013043312,-1096.99,0.00019529,2]
[328937477,1718013043323,-519.07,0.00019656,2]
[328937479,1718013043333,-152.05,0.00019688,2]
[328937481,1718013043343,-10281.0,0.00019698,2]
[328937483,1718013043352,-8172.88,0.00019754,2]
[328937485,1718013043363,-196.16,0.00019948,2]
[328937487,1718013043373,-187.57139828,0.0002,2]
[328937489,1718013043383,-3893.9489826,0.0002,2]
[328937491,1718013043394,-155.0,0.0002,2]
[328937493,1718013043404,-549.50595062,0.0002,2]
[328937495,1718013043414,-6263.53071247,0.0002,2]
[328937497,1718013043425,-864.99778559,0.0002,2]
[328937499,1718013043435,-1269.51416883,0.0002,2]
[328937501,1718013043445,-226.69645122,0.000201,2]
[328937503,1718013043455,-519.07,0.00020592,2]
[328937505,1718013043465,-167.24,0.00020859,2]
[328937507,1718013043475,-167.0,0.00021138,2]
[328937509,1718013043485,-1701.0,0.000213,3]
[328937512,1718013043495,-2160.80301861,0.00021329,2]
[328937515,1718013043505,-800.0,0.0002141,2]
[328937518,1718013043515,-519.07,0.00021528,2]
[328937520,1718013043525,-150.357,0.00021627,2]
[328937523,1718013043535,-1000.0,0.00021739,2]
[328937525,1718013043546,-573.0,0.000219,2]
[328937527,1718013043556,-250.0,0.00021918,2]
[328937529,1718013043566,-182.79,0.00021918,2]
[328937532,1718013043575,-150.0,0.00021918,2]
[328937535,1718013043585,-175.0,0.00022,2]
[328937538,1718013043595,-790.69511824,0.00022,2]
[328937540,1718013043604,-300.0,0.00022147,2]
[328937542,1718013043614,-139896.0,0.000223,2]
[328937544,1718013043624,-519.07,0.00022464,2]
[328937546,1718013043633,-8172.88,0.00022494,2]
[328937548,1718013043643,-167.0,0.00022749,2]
[328937550,1718013043652,-150.357,0.00022762,2]
[328937552,1718013043662,-442.47,0.00022776,2]
[328937554,1718013043671,-150.0,0.000228,2]
[328937556,1718013043681,-1905.52811451,0.000229,3]
[328937572,1718013043831,-6315.86331842,0.000229,3]
[328937574,1718013043843,-807.50002,0.000229,3]
[328937577,1718013043855,-1928.1375,0.000229,3]
[328937579,1718013043867,-399.36581523,0.000229,3]
[328937590,1718013043969,-382.60523184,0.000229,3]
[328937592,1718013043979,-470.89476816,0.00022988,2]
[328937594,1718013043997,-508.96570335,0.00022988,2]
[328937595,1718013044008,-593.67599803,0.00022988,2]
[328937596,1718013044020,-1622.37353046,0.00022988,2]
[328937597,1718013044030,-172.47,0.0002301,2]
[328937598,1718013044040,-250.0,0.00023348,2]
[328937599,1718013044050,-11739.0,0.000234,5]
[328937600,1718013044060,-1000.0,0.00023442,2]
[328937601,1718013044071,-167.24,0.00023466,2]
[328937602,1718013044082,-2160.80301861,0.00023471,2]
[328937603,1718013044092,-300.0,0.00023517,2]
[328937604,1718013044102,-800.0,0.00023551,2]
[328937605,1718013044112,-350.0,0.00023896,2]
[328937606,1718013044122,-150.357,0.00024017,2]
[328937607,1718013044131,-180.0,0.0002423,2]
[328937608,1718013044140,-163.06,0.00024384,2]
[328937609,1718013044153,-171.08,0.00024384,2]
[328937610,1718013044163,-450.0,0.00024444,2]
[328937611,1718013044173,-181.43,0.00024599,2]
[328937612,1718013044187,-200.0,0.00024599,2]
[328937613,1718013044197,-29799.25906673,0.00024698,2]
[328937614,1718013044208,-573.0,0.000247,2]
[328937615,1718013044221,-13827.66892875,0.00024798,2]
[328937616,1718013044231,-10905.71944898,0.00024798,2]
[328937617,1718013044275,-2237.75096142,0.00014999,2]
[328937618,1718013044285,-2921.94947972,0.00024798,2]
[328937619,1718013044295,-13827.6689287,0.00024798,2]
[328937620,1718013044305,-3581.56827922,0.00024798,2]
[328937621,1718013044318,-373.5132,0.00024798,2]
[328937622,1718013044329,-3104.25288954,0.00024798,2]
[328937623,1718013044341,-1358.52,0.00024798,2]
[328937624,1718013044554,-206.33114071,0.00014999,2]
[328937625,1718013044563,-5409.81455994,0.00024798,2]
[328937626,1718013044573,-13827.6689287,0.00024798,2]
[328937627,1718013044582,-13827.6689287,0.00024798,2]
[328937628,1718013044592,-13316.0,0.00024819,2]
[328937629,1718013044601,-189.3,0.00024892,2]
[328937630,1718013044611,-6798.54592399,0.000249,2]
[328937631,1718013044620,-7565.45747795,0.000249,2]
[328937632,1718013044632,-1868.97347,0.000249,2]
[328937633,1718013044661,-373.49216509,0.00014998,2]
[328937634,1718013044671,-1086.62095571,0.000249,2]
[328937635,1718013044684,-3306.61702504,0.000249,2]
[328937636,1718013044694,-154.43,0.00024932,2]
[328937637,1718013044704,-404.07445159,0.00024992,2]
[328937638,1718013044714,-200.0,0.00024995,2]
[328937639,1718013044724,-4620.00352337,0.00024999,2]
[328937640,1718013044913,-14362.08584782,0.00024999,2]
[328937651,1718013053585,-156.97389496,0.00017258,2]
[328937652,1718013053595,-304.18938168,0.00017259,2]
[328937653,1718013053605,-451.92431068,0.00017259,2]
[328937654,1718013053615,-15996.71857603,0.00024999,2]
[328937655,1718013053626,-258.0384721,0.00024999,2]
[328937656,1718013053635,-8214.94513722,0.00024999,2]
[328937657,1718013053645,-1250.0,0.00025,2]
[328937658,1718013053656,-930.57594584,0.00025,2]
[328937659,1718013053665,-706.630092,0.00025,2]
[328937660,1718013053676,-1277.21264975,0.00025,2]
[328937661,1718013053686,-326.19007849,0.00025,2]
[328937662,1718013053697,-326.06894527,0.00025,2]
[328937663,1718013053707,-225.24645646,0.00025,2]
[328937664,1718013053717,-159.12531189,0.00025,2]
[328937665,1718013053727,-155.0,0.00025,2]
[328937666,1718013053737,-442.47,0.0002504,2]
[328937667,1718013053747,-5986.53278173,0.00025171,2]
[328937668,1718013053759,-9572.2330018,0.00025171,2]
[328937670,1718013054271,-658.36509528,0.00025171,2]
[328937723,1718013071217,4765.35622788,0.00010499,2]
[328937724,1718013072552,1480.58307074,0.00012,2]
[328937725,1718013075094,289.66478697,0.00010499,2]
[328937726,1718013075756,69456.37369733,0.00010499,2]
[328937727,1718013075812,106923.79591089,0.00010499,2]
[328937728,1718013084003,947.931432,0.00010499,2]
[328937729,1718013086638,299.75188144,0.00012,2]
[328937731,1718013103954,947.931432,0.00012,2]
[328937732,1718013104590,385.16807598,0.00012,2]
[328937733,1718013124041,947.931432,0.00012,2]
[328937734,1718013143962,157.83834185,0.00012,2]
[328937736,1718013767158,-300.0,0.00014999,2]
[328937737,1718013767183,-24084.93587898,0.00015,2]
[328937738,1718013767207,-174.0,0.00016416,2]
[328937740,1718013800883,1042.87918512,0.00016416,2]
[328937742,1718013849229,-1042.87918512,0.00016416,2]
[328937743,1718013862813,771.04248224,0.00016416,2]
[328937745,1718014037194,-1806.44529912,0.00017259,2]
[328937746,1718014037219,-310.26012697,0.000179,2]
[328937747,1718014037241,-155.0,0.00019998,2]
[328937748,1718014037264,-1747.57280774,0.00019999,2]
[328937749,1718014037288,-549.50595062,0.0002,2]
[328937750,1718014037310,-3893.9489826,0.0002,2]
[328937751,1718014037331,-6263.53071247,0.0002,2]
[328937752,1718014037355,-226.69645122,0.000201,2]
[328937753,1718014037381,-1531.0,0.000206,2]
[328937754,1718014037404,-1500.0,0.000212,5]
[328937755,1718014037426,-2822.8,0.00022,2]
[328937756,1718014037448,-790.69511824,0.00022,2]
[328937757,1718014037472,-736.94,0.00022641,2]
[328937758,1718014037495,-150.0,0.00024057,2]
[328937759,1718014037522,-250.0,0.00024154,2]
[328937760,1718014037545,-200.0,0.00024273,2]
[328937761,1718014037569,-1000.0,0.0002437,2]
[328937762,1718014037591,-167.24,0.00024373,2]
[328937763,1718014037615,-352.15,0.00024384,2]
[328937764,1718014037637,-200.0,0.00024398,2]
[328937765,1718014037660,-6049.31884458,0.0002444,2]
[328937766,1718014038121,-649.72311182,0.00019451,2]
[328937767,1718014038142,-107.07115542,0.0002444,2]
[328937768,1718014038164,-192.02,0.00024527,2]
[328937769,1718014038188,-154.43,0.00024535,2]
[328937770,1718014038211,-188.12,0.00024544,2]
[328937771,1718014038235,-3608.0,0.00024552,2]
[328937772,1718014038260,-11002.75,0.00024558,2]
[328937773,1718014038282,-6885.108,0.00024558,2]
[328937774,1718014038304,-150.357,0.00024702,2]
[328937775,1718014038327,-169.12,0.00024832,2]
[328937776,1718014038352,-736.94,0.00024904,2]
[328937777,1718014038376,-155.0,0.00025,2]
[328937778,1718014038399,-326.19007849,0.00025,2]
[328937779,1718014038427,-326.06894527,0.00025,2]
[328937780,1718014038450,-159.12531189,0.00025,2]
[328937781,1718014038472,-225.24645646,0.00025,2]
[328937782,1718014038494,-158.49794651,0.0002517,2]
[328937783,1718014038520,-13582.12818781,0.00025171,2]
[328937784,1718014038542,-3000.0,0.00025171,2]
[328937785,1718014038565,-4886.01,0.00025181,2]
[328937786,1718014038588,-265.88050014,0.00025205,2]
[328937799,1718014232752,-299.99,0.00017259,2]
[328937800,1718014233067,-585.83814768,0.00017259,2]
[328937801,1718014233077,-226.69645122,0.000201,2]
[328937802,1718014233088,-549.50595062,0.00020164,2]
[328937803,1718014233098,-619.0,0.000206,2]
[328937804,1718014233108,-663.24,0.00023008,2]
[328937805,1718014233118,-182.79,0.00024955,2]
[328937806,1718014233130,-1806.44529912,0.00024998,2]
[328937807,1718014233140,-3893.9489826,0.00024999,2]
[328937808,1718014233151,-26.4879939,0.00025,2]
[328937809,1718014233163,-1223.5120061,0.00025,2]
[328937810,1718014233173,-200.0,0.00025055,2]
[328937811,1718014233183,-76.4879939,0.00025205,2]
[328937812,1718014233197,-691.9257261,0.00025205,2]
[328937813,1718014233207,-734.11,0.00025205,2]
[328937814,1718014233217,-663.24,0.00025272,2]
[328937815,1718014233227,-174.72,0.00025282,2]
[328937816,1718014233237,-201.352535,0.000254,2]
[328937817,1718014233248,-4816.49,0.00025448,2]
[328937818,1718014233259,-4479.09061744,0.00025565,2]
[328937819,1718014233272,-502.92938256,0.00025565,2]
[328937820,1718014233281,-1275.84232418,0.00025639,2]
[328937821,1718014233291,-495.83285049,0.0002564,2]
[328937822,1718014233301,-710.78081583,0.0002564,2]
[328937823,1718014233311,-188.97512994,0.0002564,2]
[328937824,1718014233321,-285.32097099,0.0002564,2]
[328937825,1718014233330,-224.78480805,0.0002564,2]
[328937826,1718014233340,-1780.34257889,0.0002564,2]
[328937827,1718014233349,-1265.32163919,0.00025641,2]
[328937828,1718014233360,-864.25725023,0.00025642,2]
[328937829,1718014233370,-6246.01432357,0.00025642,2]
[328937830,1718014233379,-652.42788495,0.00025642,2]
[328937831,1718014233390,-796.36715277,0.00025642,2]
[328937832,1718014233399,-328.58131111,0.00025642,2]
[328937833,1718014233410,-233.585529,0.00025642,2]
[328937834,1718014233420,-294.05259697,0.00025642,2]
[328937835,1718014233431,-6786.52179585,0.00025643,2]
[328937836,1718014233441,-29799.25906662,0.00025644,2]
[328937837,1718014233451,-163.26,0.0002589,2]
[328937838,1718014233461,-150.357,0.0002589,2]
[328937839,1718014233471,-800.0,0.00025973,2]
[328937840,1718014233481,-1844.0,0.00026,2]
[328937841,1718014233491,-152.84255884,0.00026019,2]
[328937842,1718014233500,-4164.45801113,0.00026026,2]
[328937843,1718014233510,-387.96035831,0.00026116,2]
[328937844,1718014233521,-29799.25906662,0.00026117,2]
[328937845,1718014233532,-166.66666667,0.00026425,2]
[328937846,1718014233542,-4164.45801104,0.00026456,2]
[328937847,1718014233551,-152.84255884,0.00026464,2]
[328937848,1718014233561,-152.84255884,0.00026489,2]
[328937849,1718014233573,-152.08731165,0.00026545,2]
[328937850,1718014233583,-180.0,0.00026567,2]
[328937851,1718014233598,-4434.68118714,0.00026573,2]
[328937852,1718014233609,-259.22477775,0.0002658,2]
[328937853,1718014233619,-29799.25906662,0.0002659,2]
[328937854,1718014233630,-2057.12529549,0.000266,2]
[328937855,1718014233642,-40000.0,0.00026638,10]
[328937856,1718014233652,-174.72,0.00026673,2]
[328937857,1718014233661,-155.00128118,0.00026691,2]
[328937872,1718014233845,-151.0,0.00026708,2]
[328937873,1718014233856,-152.08731165,0.00026722,2]
[328937874,1718014233866,-152.08731165,0.00026798,2]
[328937875,1718014233876,-154.40598489,0.00026809,2]
[328937876,1718014233886,-156.01619075,0.00026824,2]
[328937877,1718014233895,-152.84255884,0.00026834,2]
[328937878,1718014233904,-154.40598489,0.00026883,2]
[328937879,1718014233913,-152.84255884,0.00026885,2]
[328937880,1718014233923,-4164.45801104,0.00026887,2]
[328937881,1718014233933,-4434.68118712,0.00026943,2]
[328937882,1718014233943,-4030.76487032,0.00027,2]
[328937883,1718014233953,-1300.0,0.00027,2]
[328937884,1718014233962,-200.0,0.00027,2]
[328937885,1718014233972,-29799.25906662,0.00027063,2]
[328937886,1718014233981,-172.47,0.00027081,2]
[328937887,1718014233991,-152.84255884,0.00027181,2]
[328937888,1718014234000,-152.08731165,0.00027187,2]
[328937889,1718014234010,-2012.74489701,0.000272,2]
[328937890,1718014234020,-152.84255884,0.00027235,2]
[328937891,1718014234029,-150.357,0.0002725,2]
[328937892,1718014234039,-155.28172411,0.00027252,2]
[328937893,1718014234049,-155.34596718,0.00027257,2]
[328937894,1718014234059,-152.37734468,0.00027314,2]
[328937895,1718014234069,-4164.45801104,0.00027317,2]
[328937896,1718014234079,-221.033677,0.00027337,2]
[328937898,1718014234088,-181.585997,0.00027337,2]
[328937900,1718014234098,-261.033775,0.00027337,2]
[328937901,1718014234107,-171.524553,0.00027337,2]
[328937902,1718014234118,-16246.261236,0.00027337,2]
[328937903,1718014234127,-16179.291123,0.00027337,2]
[328937904,1718014234137,-463.174638,0.00027337,2]
[328937905,1718014234146,-261.845016,0.00027337,2]
[328937906,1718014234156,-10615.724486,0.00027337,2]
[328937907,1718014234166,-202.470428,0.00027337,2]
[328937908,1718014234177,-152.84255884,0.0002737,2]
[328937909,1718014234187,-155.34596718,0.0002737,2]
[328937910,1718014234197,-809.5948544,0.0002739,2]
[328937911,1718014234207,-152.37734468,0.0002739,2]
[328937912,1718014234217,-150.0,0.00027397,2]
[328937913,1718014234227,-9620.05,0.00027397,2]
[328937914,1718014234237,-172.99,0.00027397,2]
[328937915,1718014234246,-2486.05012708,0.000274,2]
[328937916,1718014234255,-1004.38707222,0.000274,2]
[328937917,1718014234264,-200.0,0.000274,2]
[328937918,1718014234275,-342.76,0.000274,2]
[328937919,1718014234284,-1000.0,0.00027417,2]
[328937920,1718014234294,-810.30113204,0.00027436,2]
[328937921,1718014234304,-152.84255884,0.0002746,2]
[328937922,1718014234314,-152.08731165,0.00027499,2]
[328937923,1718014234324,-150.0,0.00027534,2]
[328937924,1718014234333,-29799.25906662,0.00027535,2]
[328937925,1718014234343,-663.24,0.00027536,2]
[328937926,1718014234354,-152.84255884,0.00027568,2]
[328937927,1718014234364,-152.08731165,0.00027637,2]
[328937928,1718014234373,-155.56631507,0.00027646,2]
[328937929,1718014234384,-152.08731165,0.00027647,2]
[328937930,1718014234393,-171.39067466,0.00027648,2]
[328937931,1718014234403,-600.0,0.00027653,6]
[328937932,1718014234412,-150.0,0.00027671,2]
[328937933,1718014234423,-152.08731165,0.00027675,2]
[328937934,1718014234433,-386.38676549,0.00027678,2]
[328937935,1718014234442,-500.0,0.00027678,2]
[328937936,1718014234452,-518.23516881,0.00027678,2]
[328937937,1718014234462,-347.12761352,0.00027678,2]
[328937938,1718014234476,-152.87238648,0.00027678,2]
[328937939,1718014234486,-447.12761352,0.00027678,2]
[328937940,1718014234498,-52.87238648,0.00027678,2]
[328937941,1718014234509,-500.0,0.00027678,2]
[328937942,1718014234519,-447.12761352,0.00027678,2]
[328937943,1718014234536,-52.87238648,0.00027678,2]
[328937944,1718014234546,-500.0,0.00027678,2]
[328937945,1718014234556,-500.0,0.00027678,2]
[328937946,1718014234566,-552.5607924,0.00027678,2]
[328937947,1718014234577,-500.0,0.00027678,2]
[328937948,1718014234587,-500.0,0.00027678,2]
[328937949,1718014234601,-500.0,0.00027678,2]
[328937950,1718014234611,-500.0,0.00027678,2]
[328937951,1718014234621,-500.0,0.00027678,2]
[328937952,1718014234632,-500.0,0.00027678,2]
[328937953,1718014234642,-221.033677,0.00027679,2]
[328937954,1718014234651,-261.033775,0.00027679,2]
[328937955,1718014234661,-16246.261236,0.00027679,2]
[328937956,1718014234673,-16179.291123,0.00027679,2]
[328937957,1718014234683,-463.174638,0.00027679,2]
[328937958,1718014234693,-261.845016,0.00027679,2]
[328937959,1718014234703,-10615.724486,0.00027679,2]
[328937960,1718014234714,-152.08731165,0.00027682,2]
[328937961,1718014234724,-152.84255884,0.0002769,2]
[328937962,1718014234735,-152.08731165,0.00027737,2]
[328937963,1718014234744,-4164.45801104,0.00027748,2]
[328937964,1718014234754,-328.85679329,0.00027782,2]
[328937965,1718014234764,-810.30113197,0.00027788,2]
[328937966,1718014234775,-155.56631507,0.00027801,2]
[328937967,1718014234785,-152.08731165,0.00027805,2]
[328937968,1718014234795,-150.0,0.00027808,2]
[328937969,1718014234805,-155.0,0.0002781,2]
[328937970,1718014234815,-380.0,0.00027823,2]
[328937971,1718014234825,-380.0,0.00027844,2]
[328937972,1718014234836,-260.18,0.00027858,2]
[328937973,1718014234846,-155.34596718,0.00027861,2]
[328937974,1718014234855,-155.56631507,0.00027867,2]
[328937975,1718014234865,-168.28119332,0.00027885,2]
[328937976,1718014234875,-152.7171191,0.00027908,2]
[328937977,1718014234884,-150.0,0.00027945,2]
[328937978,1718014234894,-342.76,0.00027998,2]
[328937979,1718014234904,-1000.0,0.00028,7]
[328937980,1718014234914,-224.8860613,0.00028,2]
[328937981,1718014234924,-24268.91381523,0.00028,2]
[328937982,1718014234934,-485.3782763,0.00028,2]
[328937983,1718014234946,-19279.50197824,0.00028008,2]
[328937991,1718014238714,-4434.68118712,0.00027312,2]
[328937992,1718014238725,-10519.75708838,0.00028008,2]
[328937993,1718014238735,-155.56631507,0.0002802,2]
[328937994,1718014238745,-181.585997,0.0002802,2]
[328937995,1718014238755,-221.033677,0.0002802,2]
[328937996,1718014238764,-261.033775,0.0002802,2]
[328937997,1718014238775,-12821.69009662,0.0002802,2]
[328937998,1718014238787,-3424.57113938,0.0002802,2]
[328937999,1718014238797,-16179.291123,0.0002802,2]
[328938000,1718014238807,-463.174638,0.0002802,2]
[328938001,1718014238816,-261.845016,0.0002802,2]